bitfinex/quotes_SOLUSD_20230905
["timestamp","ask_amount","ask_price","bid_price","bid_amount"]
[1693922232838,33.355,19.96,19.932,20.0]
[1693922233146,58.71893245,19.96,19.94,33.098]
[1693922233454,58.71893245,19.96,19.941,20.0]
[1693922233648,109.32786445,19.96,19.943,7.821]
[1693922234041,95.1975,19.959,19.931,99.84]
[1693922234247,25.54,19.95,19.923,40.48545636]
[1693922234547,25.54,19.95,19.9,352.38449597]
[1693922234548,7.82,19.947,19.927,20.0]
[1693922234753,7.822,19.943,19.925,25.54]
[1693922234948,55.0,19.942,19.926,20.0]
[1693922235138,95.1975,19.946,19.926,20.0]
[1693922235455,55.0,19.942,19.925,25.54]
[1693922235658,55.0,19.941,19.919,56.63682398]
[1693922235950,55.0,19.941,19.916,41.07522567]
[1693922235951,7.824,19.938,19.916,41.07522567]
[1693922236139,55.0,19.937,19.913,56.63682398]
[1693922236341,55.0,19.937,19.914,86.91393361]
[1693922236642,88.18793245,19.937,19.914,70.0497]
[1693922236844,7.829,19.926,19.902,95.9861]
[1693922237061,7.829,19.926,19.89,25.54]
[1693922237240,55.0,19.925,19.892,54.32388861]
[1693922237548,62.829,19.925,19.893,15.06558]
[1693922237744,62.829,19.925,19.893,69.38946861]
[1693922237943,62.829,19.925,19.894,54.32388861]
[1693922238139,25.36393245,19.924,19.894,54.32388861]
[1693922238343,7.831,19.92,19.895,20.0]
[1693922238539,7.831,19.92,19.894,20.0]
[1693922238762,55.0,19.919,19.896,15.06331]
[1693922239140,92.5847,19.926,19.897,20.0]
[1693922239349,55.0,19.925,19.898,25.36393245]
[1693922239547,55.0,19.925,19.901,63.109]
[1693922239754,55.0,19.925,19.902,70.05877]
[1693922239945,7.828,19.928,19.908,63.089]
[1693922240151,55.0,19.927,19.909,20.0]
[1693922240342,7.823,19.94,19.914,63.07]
[1693922240545,7.823,19.939,19.915,20.0]
[1693922240749,7.823,19.939,19.922,7.83]
[1693922240946,58.46393245,19.939,19.922,7.83]
[1693922241149,25.36393245,19.938,19.916,25.305]
[1693922241351,7.826,19.934,19.921,7.83]
[1693922241655,250.0,19.957,19.921,33.129]
[1693922241846,40.51833249,19.945,19.921,33.129]
[1693922242742,120.0355,19.948,19.929,188.158]
[1693922242743,94.7695,19.948,19.929,188.158]
[1693922242944,95.4627,19.953,19.936,33.104]
[1693922243140,103.2807,19.953,19.936,33.104]
[1693922243860,95.4627,19.953,19.936,7.824]
[1693922244061,51.58278756,19.952,19.936,63.0]
[1693922244358,51.58278756,19.952,19.937,20.0]
[1693922244359,26.21885511,19.952,19.937,20.0]
[1693922244553,26.21885511,19.952,19.941,7.822]
[1693922244949,25.36393245,19.957,19.941,7.822]
[1693922245151,94.3773,19.959,19.941,33.096]
[1693922245659,51.56244984,19.962,19.941,33.096]
[1693922246357,84.62444984,19.962,19.941,33.096]
[1693922246754,84.62444984,19.962,19.941,7.822]
[1693922246951,7.817,19.955,19.941,7.822]
[1693922247164,55.0,19.954,19.941,7.822]
[1693922247355,62.818,19.954,19.941,7.822]
[1693922247551,62.818,19.954,19.939,7.823]
[1693922247750,62.818,19.954,19.937,20.0]
[1693922247751,62.818,19.954,19.941,7.823]
[1693922248259,62.818,19.954,19.937,20.0]
[1693922248455,62.818,19.954,19.936,20.0]
[1693922248962,62.818,19.954,19.939,7.823]
[1693922249153,62.818,19.954,19.94,20.0]
[1693922249360,62.818,19.954,19.94,27.823]
[1693922249659,62.818,19.954,19.94,20.0]
[1693922249864,62.818,19.954,19.935,20.068093]
[1693922250169,7.819,19.951,19.935,7.825]
[1693922250355,25.36393245,19.951,19.935,7.825]
[1693922250658,55.0,19.95,19.935,7.825]
[1693922253265,55.0,19.951,19.935,7.825]
[1693922253767,62.819,19.951,19.935,7.825]
[1693922254261,91.6148,19.953,19.935,7.825]
[1693922254464,91.6148,19.953,19.936,20.0]
[1693922254762,91.6148,19.953,19.941,33.097]
[1693922254951,7.816,19.958,19.941,33.097]
[1693922255148,92.2445,19.957,19.941,33.097]
[1693922255361,39.41825476,19.959,19.941,33.097]
[1693922255563,25.36393245,19.96,19.941,33.097]
[1693922255564,7.816,19.957,19.941,33.097]
[1693922255761,26.19849537,19.956,19.941,33.097]
[1693922256067,34.01549537,19.956,19.941,7.823]
[1693922257265,55.0,19.955,19.941,7.823]
[1693922257970,34.01549537,19.956,19.941,7.823]
[1693922258370,26.19849537,19.956,19.941,7.823]
[1693922259859,55.0,19.955,19.941,7.823]
[1693922260464,92.2445,19.961,19.941,7.823]
[1693922260670,100.0595,19.961,19.941,7.823]
[1693922260868,92.2445,19.961,19.941,7.823]
[1693922261871,92.2445,19.961,19.941,33.18693245]
[1693922262170,92.2445,19.961,19.942,25.36393245]
[1693922262375,92.2445,19.961,19.947,33.086]
[1693922263078,26.18902924,19.964,19.947,33.086]
[1693922263577,26.18902924,19.964,19.952,33.077]
[1693922265079,94.691,19.966,19.952,33.077]
[1693922265967,26.1800097,19.973,19.952,33.077]
[1693922266170,26.1800097,19.973,19.953,25.36393245]
[1693922266361,7.808,19.978,19.958,88.182]
[1693922266562,95.9568,19.977,19.959,20.0]
[1693922266762,103.7658,19.977,19.964,7.813]
[1693922266981,95.9568,19.977,19.964,7.813]
[1693922267175,103.7658,19.977,19.959,20.0]
[1693922267473,25.45,19.97,19.953,7.818]
[1693922267672,7.812,19.967,19.955,7.817]
[1693922267883,7.812,19.969,19.951,25.26]
[1693922268375,25.45,19.97,19.955,7.817]
[1693922268685,25.231,19.975,19.955,7.817]
[1693922268979,7.81,19.974,19.955,7.817]
[1693922269379,95.9568,19.977,19.955,88.30493245]
[1693922269575,95.9568,19.977,19.956,25.36393245]
[1693922269779,103.7658,19.977,19.962,7.814]
[1693922270173,103.7658,19.977,19.956,25.254]
[1693922270377,7.809,19.977,19.958,7.816]
[1693922271572,7.809,19.977,19.957,7.816]
[1693922271784,25.45,19.97,19.95,80.397]
[1693922272081,7.812,19.969,19.956,7.816]
[1693922272783,55.0,19.968,19.956,7.816]
[1693922272985,55.0,19.968,19.952,25.259]
[1693922273182,55.0,19.969,19.952,25.259]
[1693922273380,62.812,19.969,19.944,64.95490988]
[1693922273583,62.812,19.969,19.948,25.264]
[1693922273780,7.813,19.967,19.953,7.818]
[1693922273977,55.0,19.966,19.953,7.818]
[1693922274383,55.0,19.967,19.953,7.818]
[1693922275186,98.7015,19.968,19.953,7.818]
[1693922275383,40.1763527,19.977,19.953,33.18193245]
[1693922275581,95.6149,19.976,19.953,33.18193245]
[1693922275784,95.6149,19.976,19.953,132.93493245]
[1693922276086,7.809,19.977,19.953,132.93493245]
[1693922276983,26.17418129,19.976,19.953,132.93493245]
[1693922277189,7.81,19.975,19.953,132.93493245]
[1693922277599,26.17418129,19.976,19.954,25.36393245]
[1693922277785,26.17418129,19.976,19.96,33.064]
[1693922277994,25.36393245,19.975,19.96,33.064]
[1693922278296,7.816,19.959,19.931,97.4936]
[1693922278778,142.45576988,19.959,19.936,26.174182]
[1693922278984,25.45,19.95,19.936,26.174182]
[1693922279182,55.0,19.949,19.926,15.12168252]
[1693922279485,55.0,19.95,19.926,15.12168252]
[1693922279787,55.0,19.95,19.925,55.0]
[1693922280188,55.0,19.95,19.925,70.04139]
[1693922280583,55.0,19.95,19.926,20.0]
[1693922281081,113.532,19.95,19.926,20.0]
[1693922281275,138.89593245,19.95,19.926,20.0]
[1693922281586,7.821,19.945,19.926,20.0]
[1693922281783,62.822,19.944,19.926,20.0]
[1693922281978,25.45,19.94,19.895,402.5]
[1693922282179,55.0,19.939,19.905,250.0]
[1693922282375,62.824,19.939,19.902,106.11582085]
[1693922282579,25.36393245,19.938,19.902,106.11582085]
[1693922282792,7.825,19.935,19.91,62.822]
[1693922283180,55.0,19.934,19.91,62.822]
[1693922283379,62.822,19.942,19.911,20.0]
[1693922283580,7.821,19.944,19.912,25.36393245]
[1693922283792,55.0,19.943,19.915,250.0]
[1693922284186,55.0,19.943,19.916,20.0]
[1693922284594,25.45,19.95,19.917,7.832]
[1693922284794,25.45,19.95,19.92,25.45]
[1693922285111,25.45,19.95,19.929,188.165]
[1693922285683,33.269,19.95,19.929,188.165]
[1693922286491,25.45,19.95,19.929,188.165]
[1693922286996,33.269,19.95,19.929,188.165]
[1693922287297,25.45,19.95,19.929,188.165]
[1693922288400,33.269,19.95,19.929,88.311]
[1693922289797,93.1449,19.959,19.93,100.36393245]
[1693922289982,93.1449,19.959,19.938,188.075]
[1693922290300,93.1449,19.959,19.939,20.0]
[1693922290485,93.1449,19.959,19.945,188.015]
[1693922291100,93.1449,19.959,19.945,33.09]
[1693922291389,51.66072304,19.96,19.945,33.09]
[1693922291596,26.21072304,19.96,19.945,88.241]
[1693922293301,94.3842,19.965,19.945,88.241]
[1693922293601,26.19199845,19.964,19.945,88.241]
[1693922294297,55.074,19.973,19.945,88.241]
[1693922294298,25.226,19.979,19.946,20.0]
[1693922294499,25.226,19.979,19.955,33.072]
[1693922294500,26.18281852,19.97,19.955,33.072]
[1693922294797,25.45,19.97,19.955,7.817]
[1693922295100,26.18304725,19.969,19.952,25.26]
[1693922295400,33.99504725,19.969,19.953,7.818]
[1693922295784,92.1915,19.968,19.953,7.818]
[1693922296297,100.0035,19.968,19.953,7.818]
[1693922296501,7.814,19.962,19.93,40.38984961]
[1693922296686,33.265,19.96,19.937,20.0]
[1693922297084,62.816,19.959,19.94,92.1915]
[1693922297688,62.816,19.959,19.937,20.0]
[1693922297887,25.45,19.97,19.936,20.0]
[1693922298099,96.2399,19.968,19.94,25.45]
[1693922298301,96.2399,19.968,19.941,108.34342196]
[1693922298487,25.45,19.97,19.942,15.02857]
[1693922298693,25.45,19.97,19.95,187.967]
[1693922298895,7.81,19.974,19.95,187.967]
[1693922299292,26.18225394,19.972,19.95,187.967]
[1693922299495,26.18225394,19.972,19.95,213.33093245]
[1693922299703,7.808,19.978,19.959,33.066]
[1693922299905,26.17692573,19.975,19.959,33.066]
[1693922300399,26.17616514,19.975,19.959,33.066]
[1693922301007,203.03109203,19.98,19.959,33.066]
[1693922301200,26.17273801,19.978,19.959,33.066]
[1693922301405,26.17273801,19.978,19.959,58.42993245]
[1693922301590,177.58109203,19.98,19.96,70.81393245]
[1693922301907,177.58109203,19.98,19.966,187.817]
[1693922302091,177.58109203,19.98,19.967,45.36393245]
[1693922302587,177.58109203,19.98,19.967,25.36393245]
[1693922302793,26.16316592,19.983,19.966,92.669]
[1693922302987,26.16316592,19.983,19.961,15.01426]
[1693922303405,7.805,19.986,19.961,15.01426]
[1693922303406,99.2861,19.988,19.961,40.37819245]
[1693922303707,26.16194061,19.986,19.962,25.36393245]
[1693922304217,33.258,19.98,19.953,47.18914417]
[1693922304391,58.62193245,19.98,19.95,54.5295591]
[1693922304595,25.36393245,19.979,19.945,72.55307662]
[1693922304805,7.812,19.97,19.94,145.03201309]
[1693922305108,7.812,19.968,19.945,72.553077]
[1693922305308,55.0,19.967,19.945,72.553077]
[1693922305490,62.812,19.967,19.945,72.553077]
[1693922305895,55.0,19.967,19.945,72.553077]
[1693922306095,55.0,19.968,19.945,72.553077]
[1693922306493,55.0,19.968,19.946,25.36393245]
[1693922306907,55.0,19.968,19.946,79.45384358]
[1693922307111,55.0,19.968,19.946,25.36393245]
[1693922307400,7.813,19.967,19.945,72.553077]
[1693922307620,25.45,19.96,19.945,7.821]
[1693922307905,25.45,19.96,19.947,7.82]
[1693922308111,55.0,19.959,19.947,7.82]
[1693922308401,25.36393245,19.967,19.947,7.82]
[1693922308402,7.812,19.967,19.947,7.82]
[1693922308597,33.265,19.96,19.947,7.82]
[1693922309211,25.45,19.96,19.947,7.82]
[1693922309704,55.0,19.959,19.947,7.82]
[1693922310089,117.1481,19.969,19.947,7.82]
[1693922310297,7.813,19.967,19.947,7.82]
[1693922311190,25.45,19.97,19.947,7.82]
[1693922311393,25.45,19.98,19.956,187.904]
[1693922311599,25.45,19.98,19.963,33.059]
[1693922312503,58.62093245,19.98,19.953,80.387]
[1693922312710,25.36393245,19.979,19.957,7.816]
[1693922312909,7.81,19.973,19.957,7.816]
[1693922313107,25.45,19.97,19.957,7.816]
[1693922313312,7.812,19.968,19.949,25.263]
[1693922313608,33.17593245,19.968,19.95,20.0]
[1693922313906,62.813,19.967,19.953,7.818]
[1693922314102,88.99865435,19.967,19.953,7.818]
[1693922314611,93.108,19.966,19.953,7.818]
[1693922314812,55.0,19.965,19.951,7.818]
[1693922315119,62.814,19.965,19.951,7.818]
[1693922315305,55.0,19.965,19.951,7.818]
[1693922316009,93.108,19.966,19.951,7.818]
[1693922317411,26.18565435,19.967,19.951,7.818]
[1693922317412,26.18565435,19.967,19.952,25.36393245]
[1693922317615,26.18565435,19.967,19.956,7.817]
[1693922318498,93.022,19.972,19.956,7.817]
[1693922318705,26.18028078,19.969,19.956,7.817]
[1693922319210,26.18270856,19.968,19.956,7.817]
[1693922319412,33.99470856,19.968,19.955,7.817]
[1693922319614,33.99470856,19.968,19.95,45.261]
[1693922319797,55.0,19.967,19.956,7.817]
[1693922320200,26.18270856,19.968,19.957,25.36393245]
[1693922320404,39.16591478,19.985,19.966,88.146]
[1693922320603,26.16897625,19.983,19.966,88.146]
[1693922320796,26.16897625,19.983,19.967,20.0]
[1693922321005,107.7959,19.991,19.974,33.042]
[1693922321203,26.16202563,19.984,19.972,7.81]
[1693922321600,7.806,19.984,19.972,7.81]
[1693922321800,26.16625825,19.983,19.97,7.811]
[1693922322008,33.97225825,19.983,19.97,7.811]
[1693922322322,33.97225825,19.983,19.967,25.24]
[1693922322506,33.97225825,19.983,19.964,25.45]
[1693922322507,25.45,19.98,19.966,7.812]
[1693922322813,33.258,19.98,19.963,25.246]
[1693922323316,33.258,19.98,19.961,7.814]
[1693922323516,25.45,19.98,19.962,20.0]
[1693922323717,26.16625825,19.983,19.967,88.142]
[1693922324013,26.16625825,19.983,19.967,87.629993]
[1693922324213,33.97225825,19.983,19.967,32.540993]
[1693922324413,26.16625825,19.983,19.967,32.540993]
[1693922324920,33.97225825,19.983,19.961,25.36393245]
[1693922325108,25.45,19.98,19.961,25.248]
[1693922325430,7.809,19.976,19.961,7.815]
[1693922325715,55.0,19.975,19.961,7.815]
[1693922326120,7.81,19.974,19.961,7.815]
[1693922326305,91.4044,19.979,19.961,7.815]
[1693922326501,73.83931295,20.009,19.961,33.17893245]
[1693922326502,25.45,19.99,19.961,33.17893245]
[1693922326713,25.45,19.99,19.962,25.36393245]
[1693922326905,26.1597861,19.988,19.97,187.776]
[1693922327111,26.1597861,19.988,19.971,20.0]
[1693922327312,20.0,19.987,19.971,7.811]
[1693922327609,7.806,19.983,19.966,7.813]
[1693922328107,51.3747861,19.988,19.966,33.055]
[1693922328108,7.805,19.987,19.966,33.055]
[1693922328308,26.1597861,19.988,19.966,33.055]
[1693922328509,26.1597861,19.988,19.966,58.41893245]
[1693922329319,26.1597861,19.988,19.967,20.0]
[1693922329524,26.1597861,19.988,19.973,33.043]
[1693922330510,33.9637861,19.988,19.973,7.81]
[1693922330823,55.0,19.987,19.973,7.81]
[1693922331210,26.1597861,19.988,19.973,7.81]
[1693922331408,7.802,19.995,19.973,7.81]
[1693922331725,25.201,19.999,19.973,7.81]
[1693922331726,26.15543706,19.991,19.973,7.81]
[1693922331920,25.201,19.999,19.973,7.81]
[1693922332225,26.15502885,19.994,19.973,33.17393245]
[1693922332724,26.15502885,19.994,19.973,7.81]
[1693922333024,185.38409203,19.992,19.973,7.81]
[1693922333413,154.714,20.001,19.975,250.0]
[1693922333616,7.796,20.009,19.976,169.33980168]
[1693922333815,7.796,20.009,19.976,240.25580331]
[1693922334426,7.796,20.009,19.985,88.06]
[1693922334612,7.794,20.013,19.994,7.802]
[1693922334810,7.794,20.013,19.994,33.009]
[1693922335021,7.794,20.013,19.994,7.802]
[1693922335227,7.794,20.013,19.99,38.11]
[1693922335428,7.794,20.013,19.984,55.043]
[1693922335621,7.794,20.013,19.987,7.804]
[1693922336418,38.11,20.016,19.982,99.578]
[1693922336419,88.022,19.995,19.982,99.578]
[1693922336624,7.804,19.988,19.982,99.578]
[1693922336840,45.914,19.99,19.982,99.578]
[1693922337037,45.914,19.99,19.966,99.665]
[1693922337038,71.126,19.99,19.966,55.093]
[1693922337327,20.0,19.989,19.966,55.093]
[1693922337535,7.807,19.982,19.956,95.0805]
[1693922337833,38.11,19.98,19.94,38.11]
[1693922338019,7.809,19.976,19.946,25.36393245]
[1693922338220,62.81,19.975,19.951,55.039]
[1693922338520,55.0,19.975,19.951,55.039]
[1693922338721,62.809,19.975,19.946,25.36393245]
[1693922339227,117.877,19.975,19.946,25.36393245]
[1693922339820,117.877,19.975,19.95,62.779152]
[1693922340024,117.877,19.975,19.946,25.36393245]
[1693922340025,25.36393245,19.974,19.946,25.36393245]
[1693922340232,7.811,19.97,19.946,25.36393245]
[1693922340441,55.0,19.969,19.946,25.36393245]
[1693922340731,55.0,19.973,19.94,25.36393245]
[1693922341032,38.11,19.97,19.941,15.02932]
[1693922341215,55.0,19.969,19.946,117.138471]
[1693922342228,55.0,19.969,19.952,7.818]
[1693922342418,62.812,19.97,19.952,7.818]
[1693922344528,99.61,19.978,19.952,7.818]
[1693922344529,53.32932899,19.99,19.952,33.18193245]
[1693922344730,7.808,19.978,19.96,33.064]
[1693922345529,7.808,19.978,19.96,7.315]
[1693922346427,7.808,19.978,19.927,58.82782412]
[1693922346627,55.0,19.977,19.952,20.0]
[1693922346941,7.81,19.974,19.96,7.815]
[1693922347235,33.047,19.971,19.954,7.817]
[1693922347538,94.5052,19.97,19.954,7.817]
[1693922347836,62.812,19.969,19.954,7.817]
[1693922351747,62.812,19.969,19.948,25.265]
[1693922351923,20.0,19.968,19.948,25.265]
[1693922352129,7.813,19.966,19.952,7.818]
[1693922352654,55.0,19.965,19.948,25.265]
[1693922352824,7.815,19.961,19.941,40.30332]
[1693922353027,7.815,19.961,19.945,7.821]
[1693922353236,55.0,19.96,19.943,7.822]
[1693922353442,7.817,19.956,19.943,7.822]
[1693922353644,55.0,19.955,19.943,7.822]
[1693922353839,62.817,19.955,19.943,7.822]
[1693922354247,62.817,19.955,19.941,15.02932]
[1693922354430,88.073,19.955,19.938,25.278]
[1693922354628,25.36393245,19.954,19.938,25.278]
[1693922354836,33.083,19.95,19.927,25.291]
[1693922355034,33.083,19.95,19.93,7.827]
[1693922355342,7.821,19.946,19.93,7.827]
[1693922355551,7.822,19.944,19.93,7.827]
[1693922355730,55.0,19.943,19.923,25.36393245]
[1693922355930,7.823,19.941,19.929,7.827]
[1693922356133,55.0,19.943,19.927,7.828]
[1693922356134,62.823,19.94,19.927,7.828]
[1693922356333,55.0,19.943,19.925,7.829]
[1693922356738,7.823,19.94,19.925,7.829]
[1693922356941,55.0,19.939,19.925,7.829]
[1693922357146,55.0,19.939,19.923,25.296]
[1693922357147,7.824,19.938,19.923,7.829]
[1693922357443,26.21928013,19.938,19.924,7.829]
[1693922357848,34.04328013,19.938,19.924,7.829]
[1693922358042,55.0,19.937,19.924,7.829]
[1693922358548,98.9028,19.949,19.924,7.829]
[1693922358752,7.821,19.945,19.924,7.829]
[1693922359062,26.21179422,19.944,19.924,7.829]
[1693922359348,62.822,19.943,19.93,7.827]
[1693922359545,62.822,19.943,19.921,55.0]
[1693922359847,25.36393245,19.942,19.92,7.831]
[1693922360050,7.825,19.936,19.922,7.83]
[1693922360248,25.36393245,19.942,19.922,7.83]
[1693922360249,55.0,19.935,19.922,7.83]
[1693922360446,7.824,19.938,19.922,7.83]
[1693922360634,7.824,19.938,19.922,33.128]
[1693922360841,53.44115905,19.96,19.923,20.0]
[1693922361044,7.821,19.946,19.93,7.827]
[1693922361245,7.821,19.946,19.924,99.878]
[1693922361246,7.821,19.946,19.923,95.61683245]
[1693922361443,7.821,19.946,19.926,7.828]
[1693922361646,7.821,19.946,19.921,7.83]
[1693922361848,38.11,19.94,19.911,55.243]
[1693922362050,33.112,19.932,19.913,7.833]
[1693922362558,55.0,19.931,19.913,7.833]
[1693922362754,7.827,19.93,19.913,7.833]
[1693922363258,55.0,19.929,19.911,7.834]
[1693922363556,7.829,19.925,19.912,7.834]
[1693922363760,55.0,19.924,19.912,7.834]
[1693922364362,55.0,19.925,19.912,33.145]
[1693922364753,7.827,19.93,19.912,33.145]
[1693922365051,55.0,19.929,19.912,33.145]
[1693922365442,7.827,19.931,19.912,33.145]
[1693922365660,96.2336,19.937,19.912,7.834]
[1693922365861,7.828,19.929,19.91,7.835]
[1693922366163,33.19193245,19.929,19.91,7.835]
[1693922366365,7.826,19.933,19.91,7.835]
[1693922366662,7.826,19.933,19.911,25.36393245]
[1693922366864,7.826,19.933,19.915,7.833]
[1693922367743,7.828,19.929,19.915,7.833]
[1693922367958,62.828,19.928,19.915,7.833]
[1693922368261,55.0,19.927,19.915,7.833]
[1693922368558,62.828,19.927,19.915,7.833]
[1693922368758,55.0,19.927,19.915,7.833]
[1693922369258,62.828,19.927,19.915,7.833]
[1693922369460,55.0,19.927,19.915,7.833]
[1693922369660,62.828,19.927,19.91,25.313]
[1693922369843,62.828,19.927,19.911,7.834]
[1693922371062,25.283,19.934,19.911,7.834]
[1693922371360,90.0275,19.935,19.918,33.133]
[1693922371663,26.22984963,19.933,19.918,33.133]
[1693922371869,34.05584963,19.933,19.918,33.133]
[1693922373153,26.22984963,19.933,19.918,33.133]
[1693922373358,25.262,19.951,19.92,25.54]
[1693922373564,26.21383827,19.947,19.929,88.311]
[1693922373953,25.54,19.95,19.929,88.311]
[1693922374161,7.82,19.948,19.929,113.67493245]
[1693922375362,7.82,19.948,19.929,88.311]
[1693922376648,26.2117177,19.949,19.929,113.67493245]
[1693922376853,91.63696437,19.96,19.938,88.27]
[1693922377050,59.55633176,19.96,19.938,113.63393245]
[1693922377257,59.55633176,19.96,19.944,33.09]
[1693922377454,80.372,19.957,19.936,25.28]
[1693922377662,25.36393245,19.956,19.937,7.824]
[1693922377855,33.359,19.95,19.937,7.824]
[1693922378047,25.258,19.954,19.937,7.824]
[1693922378452,25.36393245,19.956,19.937,7.824]
[1693922378652,41.02358253,19.962,19.937,7.824]
[1693922378851,7.818,19.954,19.937,7.824]
[1693922379767,55.0,19.953,19.937,7.824]
[1693922379948,7.82,19.948,19.93,25.288]
[1693922380156,7.82,19.948,19.931,7.826]
[1693922380465,7.822,19.942,19.929,7.827]
[1693922380768,62.823,19.941,19.929,7.827]
[1693922380969,55.0,19.941,19.929,7.827]
[1693922382067,62.823,19.941,19.929,7.827]
[1693922382268,62.823,19.941,19.892,154.82413371]
[1693922382467,62.823,19.941,19.925,7.829]
[1693922382656,55.0,19.941,19.925,7.829]
[1693922382857,62.823,19.941,19.925,7.829]
[1693922383965,90.9199,19.947,19.925,33.19293245]
[1693922384273,25.36393245,19.955,19.926,45.36393245]
[1693922384571,40.36527847,19.956,19.933,88.294]
[1693922384775,25.254,19.957,19.934,25.36393245]
[1693922384967,51.74133176,19.96,19.941,88.255]
[1693922385174,51.74133176,19.96,19.941,113.61893245]
[1693922385468,26.20133176,19.96,19.942,25.36393245]
[1693922385669,26.20133176,19.96,19.947,33.086]
[1693922385670,34.01633176,19.96,19.947,33.086]
[1693922385965,34.01633176,19.96,19.945,55.151]
[1693922385966,59.55633176,19.96,19.945,7.821]
[1693922386174,110.17026421,19.96,19.939,25.276]
[1693922386369,169.72659621,19.96,19.939,25.276]
[1693922386574,20.0,19.959,19.939,25.276]
[1693922386777,7.817,19.957,19.939,33.099]
[1693922387077,7.816,19.959,19.939,33.099]
[1693922387468,26.19686604,19.957,19.94,20.0]
[1693922387762,26.19686604,19.957,19.945,7.821]
[1693922387963,34.01286604,19.957,19.945,7.821]
[1693922388283,26.19686604,19.957,19.945,7.821]
[1693922388671,34.01286604,19.957,19.945,7.821]
[1693922388871,26.19686604,19.957,19.945,7.821]
[1693922389284,55.0,19.956,19.945,7.821]
[1693922390382,26.19686604,19.957,19.945,7.821]
[1693922390579,25.54,19.97,19.946,20.0]
[1693922390783,26.18461327,19.967,19.953,33.077]
[1693922390972,26.18461327,19.967,19.953,7.818]
[1693922391280,7.812,19.968,19.953,7.818]
[1693922391473,7.814,19.964,19.949,7.819]
[1693922391663,55.0,19.963,19.95,27.819]
[1693922391870,7.813,19.965,19.951,20.0]
[1693922392176,94.2159,19.969,19.951,20.0]
[1693922392177,94.2159,19.969,19.954,7.817]
[1693922392382,7.812,19.968,19.954,7.817]
[1693922393979,94.2159,19.969,19.954,7.817]
[1693922394375,94.2159,19.969,19.954,62.943]
[1693922394572,94.2159,19.969,19.954,7.817]
[1693922394781,26.17876804,19.971,19.954,7.817]
[1693922396772,93.8165,19.975,19.954,7.817]
[1693922396976,26.1775017,19.974,19.954,7.817]
[1693922397375,26.1775017,19.974,19.955,20.0]
[1693922397578,26.1775017,19.974,19.96,33.064]
[1693922397782,26.1775017,19.974,19.961,20.0]
[1693922397982,33.9875017,19.974,19.961,20.0]
[1693922398189,33.9875017,19.974,19.961,27.815]